[Event "January 9 Early 2024"]
[Site "https://www.chess.com"]
[Date "2024.01.11"]
[Round "11"]
[White "Csonka, Balazs"]
[Black "Pesotskiy, Mikhail"]
[Result "1-0"]
[Board "11"]
[TimeControl "180+1"]
[WhiteFideId "742910"]
[BlackFideId "34164453"]
[WhiteElo "2691"]
[BlackElo "2489"]
[WhiteTeam "HUN"]
[BlackTeam "RUS"]
[WhiteClock "0:00:49"]
[BlackClock "0:02:15"]

1. d4 {[%clk 0:02:58]}  Nf6 {[%clk 0:02:59]} 2. Bf4 {[%clk 0:02:58]}  c5 {[%clk 0:02:58]} 3. e3 {[%clk 0:02:57]}  Nd5 {[%clk 0:02:58]} 4. Bg3 {[%clk 0:02:54]}  Qb6 {[%clk 0:02:57]} 5. b3 {[%clk 0:02:06]}  cxd4 {[%clk 0:02:45]} 6. exd4 {[%clk 0:02:05]}  d6 {[%clk 0:02:40]} 7. Bc4 {[%clk 0:01:42]}  Nf6 {[%clk 0:02:35]} 8. Nf3 {[%clk 0:01:38]}  g6 {[%clk 0:02:34]} 9. O-O {[%clk 0:01:37]}  Bg7 {[%clk 0:02:33]} 10. Re1 {[%clk 0:01:36]}  Nc6 {[%clk 0:02:33]} 11. Bxd6 {[%clk 0:01:27]}  O-O {[%clk 0:02:32]} 12. Bxe7 {[%clk 0:01:17]}  Nxe7 {[%clk 0:02:33]} 13. Rxe7 {[%clk 0:01:17]}  Bg4 {[%clk 0:02:32]} 14. c3 {[%clk 0:01:00]}  Rae8 {[%clk 0:02:22]} 15. Rxe8 {[%clk 0:00:57]}  Rxe8 {[%clk 0:02:20]} 16. Nbd2 {[%clk 0:00:57]}  Qc6 {[%clk 0:02:16]} 17. Qf1 {[%clk 0:00:51]}  a6 {[%clk 0:02:14]} 18. Ne5 {[%clk 0:00:50]}  Qc7 {[%clk 0:02:15]} 19. Bxf7+ {[%clk 0:00:49]} 1-0

[Event "January 9 Early 2024"]
[Site "https://www.chess.com"]
[Date "2024.01.11"]
[Round "11"]
[White "Garakov, Mikhael"]
[Black "Saha, Ananda"]
[Result "1-0"]
[Board "12"]
[TimeControl "180+1"]
[WhiteFideId "4169034"]
[BlackFideId "2619644"]
[WhiteElo "2657"]
[BlackElo "2484"]
[WhiteTeam "RUS"]
[BlackTeam "CAN"]
[WhiteClock "0:02:03"]
[BlackClock "0:01:12"]

1. e4 {[%clk 0:03:00]}  e6 {[%clk 0:03:00]} 2. d4 {[%clk 0:03:00]}  d5 {[%clk 0:03:00]} 3. Nc3 {[%clk 0:03:00]}  Nf6 {[%clk 0:03:00]} 4. e5 {[%clk 0:03:01]}  Nfd7 {[%clk 0:03:00]} 5. f4 {[%clk 0:03:01]}  c5 {[%clk 0:03:01]} 6. Nf3 {[%clk 0:03:01]}  Nc6 {[%clk 0:03:01]} 7. Be3 {[%clk 0:03:00]}  a6 {[%clk 0:03:02]} 8. Qd2 {[%clk 0:03:00]}  b5 {[%clk 0:03:02]} 9. a3 {[%clk 0:02:59]}  Be7 {[%clk 0:03:00]} 10. Be2 {[%clk 0:02:52]}  O-O {[%clk 0:02:56]} 11. O-O {[%clk 0:02:43]}  b4 {[%clk 0:02:53]} 12. axb4 {[%clk 0:02:42]}  cxb4 {[%clk 0:02:53]} 13. Nd1 {[%clk 0:02:42]}  a5 {[%clk 0:02:40]} 14. Nf2 {[%clk 0:02:42]}  a4 {[%clk 0:02:38]} 15. Bd3 {[%clk 0:02:31]}  Nb6 {[%clk 0:02:34]} 16. Qe2 {[%clk 0:02:18]}  a3 {[%clk 0:02:26]} 17. b3 {[%clk 0:02:15]}  Nb8 {[%clk 0:02:12]} 18. Ng5 {[%clk 0:02:13]}  Bxg5 {[%clk 0:02:04]} 19. fxg5 {[%clk 0:02:13]}  Ba6 {[%clk 0:02:05]} 20. Bxh7+ {[%clk 0:02:09]}  Kxh7 {[%clk 0:02:04]} 21. Qh5+ {[%clk 0:02:09]}  Kg8 {[%clk 0:02:03]} 22. Ng4 {[%clk 0:02:10]}  Bxf1 {[%clk 0:01:55]} 23. Nf6+ {[%clk 0:02:05]}  Qxf6 {[%clk 0:01:29]} 24. gxf6 {[%clk 0:02:06]}  gxf6 {[%clk 0:01:12]} 25. exf6 {[%clk 0:02:03]} 1-0

[Event "January 9 Early 2024"]
[Site "https://www.chess.com"]
[Date "2024.01.11"]
[Round "11"]
[White "Tiarks, Jann-Christian"]
[Black "Zhu, Jiner"]
[Result "0-1"]
[Board "13"]
[TimeControl "180+1"]
[WhiteFideId "12951595"]
[BlackFideId "8608059"]
[WhiteElo "2455"]
[BlackElo "2608"]
[WhiteTeam "GER"]
[BlackTeam "CHN"]
[WhiteClock "0:01:26"]
[BlackClock "0:01:40"]

1. e4 {[%clk 0:03:00]}  e5 {[%clk 0:02:56]} 2. Nf3 {[%clk 0:02:59]}  Nc6 {[%clk 0:02:56]} 3. d4 {[%clk 0:02:58]}  exd4 {[%clk 0:02:56]} 4. Nxd4 {[%clk 0:02:59]}  Bc5 {[%clk 0:02:55]} 5. Nb3 {[%clk 0:02:59]}  Bb6 {[%clk 0:02:55]} 6. Nc3 {[%clk 0:03:00]}  Nf6 {[%clk 0:02:55]} 7. Qe2 {[%clk 0:03:01]}  O-O {[%clk 0:02:53]} 8. Be3 {[%clk 0:03:01]}  d6 {[%clk 0:02:53]} 9. O-O-O {[%clk 0:03:01]}  Re8 {[%clk 0:02:52]} 10. f3 {[%clk 0:03:01]}  Qe7 {[%clk 0:02:48]} 11. Kb1 {[%clk 0:02:59]}  Be6 {[%clk 0:02:46]} 12. g4 {[%clk 0:02:58]}  Ne5 {[%clk 0:02:38]} 13. g5 {[%clk 0:02:51]}  Nfd7 {[%clk 0:02:38]} 14. h4 {[%clk 0:02:44]}  Nc4 {[%clk 0:02:33]} 15. Bf2 {[%clk 0:02:40]}  a5 {[%clk 0:02:26]} 16. Bxb6 {[%clk 0:02:39]}  Ndxb6 {[%clk 0:02:27]} 17. Nd4 {[%clk 0:02:34]}  a4 {[%clk 0:02:21]} 18. Nxe6 {[%clk 0:02:26]}  Qxe6 {[%clk 0:02:21]} 19. Bh3 {[%clk 0:02:26]}  Qe5 {[%clk 0:02:20]} 20. Qd3 {[%clk 0:01:55]}  a3 {[%clk 0:02:08]} 21. b3 {[%clk 0:01:54]}  Nb2 {[%clk 0:02:09]} 22. Qd2 {[%clk 0:01:48]}  Nxd1 {[%clk 0:02:09]} 23. Rxd1 {[%clk 0:01:49]}  Qg3 {[%clk 0:01:58]} 24. Bg4 {[%clk 0:01:42]}  Rad8 {[%clk 0:01:49]} 25. h5 {[%clk 0:01:39]}  c6 {[%clk 0:01:41]} 26. h6 {[%clk 0:01:32]}  g6 {[%clk 0:01:39]} 27. Qd4 {[%clk 0:01:31]}  Qe5 {[%clk 0:01:39]} 28. Qxb6 {[%clk 0:01:30]}  Qxc3 {[%clk 0:01:39]} 29. Qd4 {[%clk 0:01:30]}  Qxd4 {[%clk 0:01:39]} 30. Rxd4 {[%clk 0:01:31]}  d5 {[%clk 0:01:40]} 31. exd5 {[%clk 0:01:28]}  Re1+ {[%clk 0:01:39]} 32. Rd1 {[%clk 0:01:26]}  Rxd1# {[%clk 0:01:40]} 0-1

[Event "January 9 Early 2024"]
[Site "https://www.chess.com"]
[Date "2024.01.11"]
[Round "11"]
[White "Rosenberg, Evan S"]
[Black "Tikhonov, Viacheslav"]
[Result "0-1"]
[Board "14"]
[TimeControl "180+1"]
[WhiteFideId "2019299"]
[BlackFideId "44196407"]
[WhiteElo "2394"]
[BlackElo "2521"]
[WhiteTeam "USA"]
[BlackTeam "RUS"]
[WhiteClock "0:01:30"]
[BlackClock "0:01:28"]

1. e4 {[%clk 0:03:00]}  c5 {[%clk 0:02:59]} 2. Nc3 {[%clk 0:03:00]}  g6 {[%clk 0:02:57]} 3. f4 {[%clk 0:02:59]}  Bg7 {[%clk 0:02:56]} 4. Nf3 {[%clk 0:02:59]}  Nc6 {[%clk 0:02:57]} 5. a4 {[%clk 0:02:59]}  e6 {[%clk 0:02:57]} 6. e5 {[%clk 0:03:00]}  d6 {[%clk 0:02:54]} 7. Bb5 {[%clk 0:02:59]}  d5 {[%clk 0:02:47]} 8. O-O {[%clk 0:02:46]}  Ne7 {[%clk 0:02:45]} 9. d3 {[%clk 0:02:37]}  O-O {[%clk 0:02:44]} 10. Bxc6 {[%clk 0:02:34]}  Nxc6 {[%clk 0:02:44]} 11. b3 {[%clk 0:02:26]}  f6 {[%clk 0:02:44]} 12. Re1 {[%clk 0:02:09]}  fxe5 {[%clk 0:02:40]} 13. fxe5 {[%clk 0:02:09]}  Rf5 {[%clk 0:02:06]} 14. g4 {[%clk 0:01:56]}  Rf8 {[%clk 0:02:03]} 15. Bg5 {[%clk 0:01:53]}  Qc7 {[%clk 0:02:03]} 16. Bf6 {[%clk 0:01:53]}  Bxf6 {[%clk 0:02:00]} 17. exf6 {[%clk 0:01:53]}  Rxf6 {[%clk 0:01:57]} 18. Nb5 {[%clk 0:01:53]}  Qf4 {[%clk 0:01:55]} 19. Rf1 {[%clk 0:01:36]}  Qxg4+ {[%clk 0:01:52]} 20. Kh1 {[%clk 0:01:36]}  Bd7 {[%clk 0:01:34]} 21. d4 {[%clk 0:01:30]}  Raf8 {[%clk 0:01:28]} 0-1

[Event "January 9 Early 2024"]
[Site "https://www.chess.com"]
[Date "2024.01.11"]
[Round "11"]
[White "Domalchuk-Jonasson, Aleksandr"]
[Black "Kozak, Antoni"]
[Result "0-1"]
[Board "17"]
[TimeControl "180+1"]
[WhiteFideId "14142805"]
[BlackFideId "21832030"]
[WhiteElo "2632"]
[BlackElo "2767"]
[WhiteTeam "ISL"]
[BlackTeam "POL"]
[WhiteClock "0:01:01"]
[BlackClock "0:01:41"]

1. d4 {[%clk 0:03:00]}  Nf6 {[%clk 0:02:59]} 2. Bg5 {[%clk 0:03:00]}  d5 {[%clk 0:02:59]} 3. e3 {[%clk 0:03:00]}  c6 {[%clk 0:02:57]} 4. Nf3 {[%clk 0:02:59]}  Bf5 {[%clk 0:02:57]} 5. Bd3 {[%clk 0:02:58]}  Bg6 {[%clk 0:02:56]} 6. O-O {[%clk 0:02:58]}  e6 {[%clk 0:02:57]} 7. c4 {[%clk 0:02:58]}  Be7 {[%clk 0:02:57]} 8. Nc3 {[%clk 0:02:58]}  O-O {[%clk 0:02:57]} 9. Ne5 {[%clk 0:02:53]}  Nbd7 {[%clk 0:02:56]} 10. Nxg6 {[%clk 0:02:52]}  hxg6 {[%clk 0:02:56]} 11. b3 {[%clk 0:02:46]}  Ne8 {[%clk 0:02:50]} 12. Bxe7 {[%clk 0:02:43]}  Qxe7 {[%clk 0:02:51]} 13. e4 {[%clk 0:02:44]}  dxe4 {[%clk 0:02:50]} 14. Nxe4 {[%clk 0:02:43]}  Ndf6 {[%clk 0:02:49]} 15. Qd2 {[%clk 0:02:05]}  Nxe4 {[%clk 0:02:49]} 16. Bxe4 {[%clk 0:02:06]}  Rd8 {[%clk 0:02:48]} 17. Rad1 {[%clk 0:02:04]}  Nf6 {[%clk 0:02:48]} 18. Bf3 {[%clk 0:02:04]}  Qa3 {[%clk 0:02:47]} 19. Qc2 {[%clk 0:01:55]}  Rd7 {[%clk 0:02:45]} 20. Rd2 {[%clk 0:01:56]}  Rfd8 {[%clk 0:02:46]} 21. Rfd1 {[%clk 0:01:56]}  a5 {[%clk 0:02:44]} 22. g3 {[%clk 0:01:54]}  g5 {[%clk 0:02:40]} 23. h3 {[%clk 0:01:49]}  a4 {[%clk 0:02:37]} 24. Kg2 {[%clk 0:01:45]}  g6 {[%clk 0:02:36]} 25. Qc3 {[%clk 0:01:42]}  axb3 {[%clk 0:02:11]} 26. axb3 {[%clk 0:01:42]}  Qe7 {[%clk 0:02:11]} 27. Qa5 {[%clk 0:01:37]}  Ne8 {[%clk 0:01:58]} 28. d5 {[%clk 0:01:37]}  cxd5 {[%clk 0:01:58]} 29. cxd5 {[%clk 0:01:38]}  e5 {[%clk 0:01:58]} 30. Bg4 {[%clk 0:01:26]}  f5 {[%clk 0:01:56]} 31. Be2 {[%clk 0:01:27]}  Nd6 {[%clk 0:01:56]} 32. Bc4 {[%clk 0:01:23]}  Rc8 {[%clk 0:01:53]} 33. Qc3 {[%clk 0:01:09]}  b5 {[%clk 0:01:51]} 34. Re1 {[%clk 0:01:05]}  bxc4 {[%clk 0:01:41]} 35. Rxe5 {[%clk 0:01:04]}  Qg7 {[%clk 0:01:41]} 36. bxc4 {[%clk 0:01:01]}  Ne4 {[%clk 0:01:41]} 0-1

[Event "January 9 Early 2024"]
[Site "https://www.chess.com"]
[Date "2024.01.11"]
[Round "11"]
[White "Llari, Marc"]
[Black "Ladan, Nicholas"]
[Result "0-1"]
[Board "18"]
[TimeControl "180+1"]
[WhiteFideId "651044269"]
[BlackFideId "30918855"]
[WhiteElo "2326"]
[BlackElo "2473"]
[WhiteTeam "FRA"]
[BlackTeam "USA"]
[WhiteClock "0:01:49"]
[BlackClock "0:01:23"]

1. d4 {[%clk 0:03:00]}  b5 {[%clk 0:02:52]} 2. Nf3 {[%clk 0:03:00]}  Bb7 {[%clk 0:02:51]} 3. g3 {[%clk 0:02:59]}  e6 {[%clk 0:02:49]} 4. Bg2 {[%clk 0:02:59]}  Nf6 {[%clk 0:02:49]} 5. O-O {[%clk 0:02:59]}  Be7 {[%clk 0:02:49]} 6. a4 {[%clk 0:02:57]}  a6 {[%clk 0:02:48]} 7. axb5 {[%clk 0:02:56]}  axb5 {[%clk 0:02:49]} 8. Rxa8 {[%clk 0:02:56]}  Bxa8 {[%clk 0:02:49]} 9. Nbd2 {[%clk 0:02:56]}  O-O {[%clk 0:02:48]} 10. Nb3 {[%clk 0:02:56]}  Na6 {[%clk 0:02:45]} 11. Bg5 {[%clk 0:02:53]}  h6 {[%clk 0:02:43]} 12. Bxf6 {[%clk 0:02:53]}  Bxf6 {[%clk 0:02:44]} 13. c3 {[%clk 0:02:51]}  Be4 {[%clk 0:02:43]} 14. Nfd2 {[%clk 0:02:51]}  Bxg2 {[%clk 0:02:43]} 15. Kxg2 {[%clk 0:02:52]}  Qa8+ {[%clk 0:02:43]} 16. e4 {[%clk 0:02:48]}  Rc8 {[%clk 0:02:39]} 17. Qf3 {[%clk 0:02:46]}  c5 {[%clk 0:02:38]} 18. d5 {[%clk 0:02:45]}  c4 {[%clk 0:02:35]} 19. Nc1 {[%clk 0:02:40]}  exd5 {[%clk 0:02:17]} 20. exd5 {[%clk 0:02:39]}  Nc7 {[%clk 0:02:18]} 21. Ne2 {[%clk 0:02:36]}  Qxd5 {[%clk 0:02:16]} 22. Qxd5 {[%clk 0:02:36]}  Nxd5 {[%clk 0:02:16]} 23. Ra1 {[%clk 0:02:29]}  b4 {[%clk 0:02:14]} 24. Ra5 {[%clk 0:02:27]}  bxc3 {[%clk 0:02:06]} 25. Rxd5 {[%clk 0:02:25]}  cxb2 {[%clk 0:01:54]} 26. Rxd7 {[%clk 0:02:19]}  c3 {[%clk 0:01:54]} 27. Nxc3 {[%clk 0:02:15]}  Rxc3 {[%clk 0:01:49]} 28. Rb7 {[%clk 0:02:14]}  Rc1 {[%clk 0:01:47]} 29. Kf3 {[%clk 0:02:12]}  Bc3 {[%clk 0:01:46]} 30. Ke2 {[%clk 0:02:10]}  Bxd2 {[%clk 0:01:41]} 31. Rxb2 {[%clk 0:02:07]}  Bg5 {[%clk 0:01:41]} 32. h4 {[%clk 0:02:07]}  Bf6 {[%clk 0:01:41]} 33. Rb8+ {[%clk 0:02:06]}  Kh7 {[%clk 0:01:40]} 34. Rb7 {[%clk 0:02:07]}  Kg6 {[%clk 0:01:39]} 35. Kf3 {[%clk 0:02:08]}  h5 {[%clk 0:01:38]} 36. Rd7 {[%clk 0:02:06]}  Rc3+ {[%clk 0:01:37]} 37. Kg2 {[%clk 0:02:06]}  Rc4 {[%clk 0:01:34]} 38. Rd2 {[%clk 0:02:05]}  Rd4 {[%clk 0:01:34]} 39. Re2 {[%clk 0:02:05]}  Kf5 {[%clk 0:01:34]} 40. Kf3 {[%clk 0:02:05]}  Rd3+ {[%clk 0:01:33]} 41. Kg2 {[%clk 0:02:05]}  g6 {[%clk 0:01:31]} 42. Ra2 {[%clk 0:02:05]}  Rd5 {[%clk 0:01:26]} 43. Rc2 {[%clk 0:02:04]}  Rb5 {[%clk 0:01:26]} 44. Ra2 {[%clk 0:02:03]}  Bd4 {[%clk 0:01:25]} 45. Re2 {[%clk 0:02:03]}  Rb2 {[%clk 0:01:24]} 46. Rxb2 {[%clk 0:01:53]}  Bxb2 {[%clk 0:01:25]} 47. Kf3 {[%clk 0:01:52]}  Bd4 {[%clk 0:01:24]} 48. Kg2 {[%clk 0:01:51]}  Ke4 {[%clk 0:01:24]} 49. f3+ {[%clk 0:01:50]}  Ke3 {[%clk 0:01:24]} 50. g4 {[%clk 0:01:50]}  Be5 {[%clk 0:01:23]} 51. gxh5 {[%clk 0:01:49]}  gxh5 {[%clk 0:01:23]} 0-1

[Event "January 9 Early 2024"]
[Site "https://www.chess.com"]
[Date "2024.01.11"]
[Round "11"]
[White "Travkina, Anastasia"]
[Black "Sanhueza, Cristian"]
[Result "0-1"]
[Board "19"]
[TimeControl "180+1"]
[WhiteFideId "24129151"]
[BlackFideId "116815"]
[WhiteElo "2447"]
[BlackElo "2609"]
[WhiteTeam "RUS"]
[BlackTeam "ARG"]
[WhiteClock "0:01:31"]
[BlackClock "0:00:32"]

1. e4 {[%clk 0:03:00]}  e5 {[%clk 0:02:56]} 2. Nf3 {[%clk 0:03:01]}  Nc6 {[%clk 0:02:57]} 3. Bc4 {[%clk 0:03:01]}  Nf6 {[%clk 0:02:57]} 4. d4 {[%clk 0:03:01]}  exd4 {[%clk 0:02:57]} 5. Ng5 {[%clk 0:03:01]}  d5 {[%clk 0:02:57]} 6. exd5 {[%clk 0:03:02]}  Qe7+ {[%clk 0:02:58]} 7. Qe2 {[%clk 0:03:01]}  Qxe2+ {[%clk 0:02:54]} 8. Kxe2 {[%clk 0:02:54]}  Na5 {[%clk 0:02:47]} 9. b3 {[%clk 0:02:54]}  Nxc4 {[%clk 0:02:41]} 10. bxc4 {[%clk 0:02:54]}  Bf5 {[%clk 0:02:36]} 11. Bf4 {[%clk 0:02:36]}  Bxc2 {[%clk 0:02:18]} 12. Bxc7 {[%clk 0:02:27]}  d3+ {[%clk 0:02:18]} 13. Kf3 {[%clk 0:02:19]}  h6 {[%clk 0:02:15]} 14. Re1+ {[%clk 0:02:17]}  Kd7 {[%clk 0:02:15]} 15. Nxf7 {[%clk 0:02:11]}  Bb4 {[%clk 0:02:08]} 16. Re6 {[%clk 0:01:53]}  Rhf8 {[%clk 0:01:50]} 17. Ne5+ {[%clk 0:01:46]}  Kxc7 {[%clk 0:01:49]} 18. a3 {[%clk 0:01:46]}  Bd6 {[%clk 0:01:38]} 19. Nc3 {[%clk 0:01:44]}  Nxd5+ {[%clk 0:00:46]} 20. Ke4 {[%clk 0:01:31]}  Nxc3+ {[%clk 0:00:38]} 21. Kd4 {[%clk 0:01:31]}  Ne2+ {[%clk 0:00:32]} 22. Kd5 {[%clk 0:01:31]} 0-1

[Event "January 9 Early 2024"]
[Site "https://www.chess.com"]
[Date "2024.01.11"]
[Round "11"]
[White "Hercegovac, Neven"]
[Black "Khamdamova, Afruza"]
[Result "0-1"]
[Board "20"]
[TimeControl "180+1"]
[WhiteFideId "2839135"]
[BlackFideId "14210444"]
[WhiteElo "2334"]
[BlackElo "2505"]
[WhiteTeam "ITA"]
[BlackTeam "UZB"]
[WhiteClock "0:00:29"]
[BlackClock "0:01:48"]

1. d4 {[%clk 0:03:00]}  Nf6 {[%clk 0:02:58]} 2. Bf4 {[%clk 0:03:00]}  d5 {[%clk 0:02:58]} 3. e3 {[%clk 0:03:00]}  c5 {[%clk 0:02:58]} 4. Nf3 {[%clk 0:03:00]}  Nc6 {[%clk 0:02:59]} 5. Nbd2 {[%clk 0:02:59]}  cxd4 {[%clk 0:02:56]} 6. exd4 {[%clk 0:03:00]}  Bf5 {[%clk 0:02:57]} 7. Bb5 {[%clk 0:02:31]}  e6 {[%clk 0:02:56]} 8. Ne5 {[%clk 0:02:13]}  Rc8 {[%clk 0:02:56]} 9. O-O {[%clk 0:01:26]}  Bd6 {[%clk 0:02:50]} 10. c4 {[%clk 0:01:14]}  O-O {[%clk 0:02:50]} 11. Bxc6 {[%clk 0:01:13]}  bxc6 {[%clk 0:02:49]} 12. c5 {[%clk 0:01:13]}  Bb8 {[%clk 0:02:45]} 13. b4 {[%clk 0:01:09]}  Ne4 {[%clk 0:02:27]} 14. Nxe4 {[%clk 0:01:07]}  Bxe4 {[%clk 0:02:27]} 15. Bg3 {[%clk 0:01:03]}  Qe8 {[%clk 0:02:15]} 16. a4 {[%clk 0:00:58]}  f6 {[%clk 0:02:14]} 17. Nf3 {[%clk 0:00:56]}  e5 {[%clk 0:02:12]} 18. dxe5 {[%clk 0:00:56]}  fxe5 {[%clk 0:02:12]} 19. Nd2 {[%clk 0:00:55]}  Bd3 {[%clk 0:02:05]} 20. Re1 {[%clk 0:00:54]}  e4 {[%clk 0:02:05]} 21. f3 {[%clk 0:00:53]}  Bxg3 {[%clk 0:02:03]} 22. hxg3 {[%clk 0:00:53]}  Qg6 {[%clk 0:02:02]} 23. fxe4 {[%clk 0:00:41]}  dxe4 {[%clk 0:02:02]} 24. b5 {[%clk 0:00:42]}  cxb5 {[%clk 0:01:53]} 25. axb5 {[%clk 0:00:43]}  Rxc5 {[%clk 0:01:53]} 26. Rxa7 {[%clk 0:00:38]}  Rxb5 {[%clk 0:01:52]} 27. Qa4 {[%clk 0:00:29]}  Qb6+ {[%clk 0:01:48]} 0-1

[Event "January 9 Early 2024"]
[Site "https://www.chess.com"]
[Date "2024.01.11"]
[Round "11"]
[White "Zavgorodniy, Sergiy"]
[Black "Castellano, Christopher"]
[Result "1-0"]
[Board "21"]
[TimeControl "180+1"]
[WhiteFideId "14110148"]
[BlackFideId "5203651"]
[WhiteElo "2622"]
[BlackElo "2446"]
[WhiteTeam "UKR"]
[BlackTeam "PHI"]
[WhiteClock "0:01:11"]
[BlackClock "0:01:16"]

1. e4 {[%clk 0:03:00]}  g6 {[%clk 0:02:56]} 2. h4 {[%clk 0:02:54]}  Bg7 {[%clk 0:02:57]} 3. h5 {[%clk 0:02:54]}  gxh5 {[%clk 0:02:57]} 4. Ne2 {[%clk 0:02:53]}  Nf6 {[%clk 0:02:57]} 5. Ng3 {[%clk 0:02:52]}  d6 {[%clk 0:02:54]} 6. d4 {[%clk 0:02:50]}  Bg4 {[%clk 0:02:50]} 7. Be2 {[%clk 0:02:49]}  Nc6 {[%clk 0:02:46]} 8. Be3 {[%clk 0:02:47]}  e5 {[%clk 0:02:38]} 9. d5 {[%clk 0:02:46]}  Nd4 {[%clk 0:02:36]} 10. f3 {[%clk 0:02:47]}  Nxe2 {[%clk 0:02:33]} 11. Qxe2 {[%clk 0:02:47]}  Bd7 {[%clk 0:02:31]} 12. Nc3 {[%clk 0:02:41]}  a6 {[%clk 0:02:27]} 13. O-O-O {[%clk 0:02:39]}  Qe7 {[%clk 0:02:21]} 14. Nxh5 {[%clk 0:02:38]}  Nxh5 {[%clk 0:02:21]} 15. Rxh5 {[%clk 0:02:39]}  O-O-O {[%clk 0:02:19]} 16. Rdh1 {[%clk 0:02:36]}  h6 {[%clk 0:02:12]} 17. Bxh6 {[%clk 0:02:29]}  Bxh6+ {[%clk 0:02:12]} 18. Rxh6 {[%clk 0:02:30]}  Rxh6 {[%clk 0:02:11]} 19. Rxh6 {[%clk 0:02:31]}  f5 {[%clk 0:02:05]} 20. exf5 {[%clk 0:02:17]}  Bxf5 {[%clk 0:02:05]} 21. g4 {[%clk 0:02:17]}  Bd7 {[%clk 0:01:59]} 22. Ne4 {[%clk 0:02:14]}  Rf8 {[%clk 0:01:58]} 23. b3 {[%clk 0:02:10]}  Kb8 {[%clk 0:01:58]} 24. a4 {[%clk 0:02:09]}  Rf4 {[%clk 0:01:44]} 25. Kb2 {[%clk 0:02:06]}  Qf7 {[%clk 0:01:44]} 26. Rh8+ {[%clk 0:02:00]}  Ka7 {[%clk 0:01:43]} 27. Qe3+ {[%clk 0:01:49]}  b6 {[%clk 0:01:43]} 28. Qc3 {[%clk 0:01:20]}  Kb7 {[%clk 0:01:38]} 29. a5 {[%clk 0:01:13]}  Rxf3 {[%clk 0:01:34]} 30. Ng5 {[%clk 0:01:14]}  Rxc3 {[%clk 0:01:30]} 31. Nxf7 {[%clk 0:01:14]}  Rg3 {[%clk 0:01:28]} 32. Nd8+ {[%clk 0:01:14]}  Ka7 {[%clk 0:01:24]} 33. Rh7 {[%clk 0:01:14]}  Bxg4 {[%clk 0:01:24]} 34. Rxc7+ {[%clk 0:01:12]}  Kb8 {[%clk 0:01:24]} 35. axb6 {[%clk 0:01:12]}  Bf5 {[%clk 0:01:17]} 36. Nc6+ {[%clk 0:01:11]}  Ka8 {[%clk 0:01:16]} 37. b7# {[%clk 0:01:11]} 1-0

[Event "January 9 Early 2024"]
[Site "https://www.chess.com"]
[Date "2024.01.11"]
[Round "11"]
[White "Kuhn, Clement"]
[Black "Tejedor Fuente, Enrique"]
[Result "0-1"]
[Board "22"]
[TimeControl "180+1"]
[WhiteFideId "36099775"]
[BlackFideId "2299100"]
[WhiteElo "2591"]
[BlackElo "2730"]
[WhiteTeam "FRA"]
[BlackTeam "ESP"]
[WhiteClock "0:00:26"]
[BlackClock "0:01:49"]

1. Nf3 {[%clk 0:02:55]}  d6 {[%clk 0:02:53]} 2. d4 {[%clk 0:02:55]}  g6 {[%clk 0:02:52]} 3. b3 {[%clk 0:02:52]}  Bg7 {[%clk 0:02:51]} 4. Bb2 {[%clk 0:02:53]}  Nc6 {[%clk 0:02:51]} 5. g3 {[%clk 0:02:49]}  Bg4 {[%clk 0:02:51]} 6. Bg2 {[%clk 0:02:48]}  Nh6 {[%clk 0:02:51]} 7. O-O {[%clk 0:02:48]}  O-O {[%clk 0:02:51]} 8. c4 {[%clk 0:02:48]}  Nf5 {[%clk 0:02:51]} 9. e3 {[%clk 0:02:47]}  e5 {[%clk 0:02:51]} 10. d5 {[%clk 0:02:47]}  Nce7 {[%clk 0:02:51]} 11. Nbd2 {[%clk 0:02:46]}  e4 {[%clk 0:02:49]} 12. Bxg7 {[%clk 0:02:44]}  exf3 {[%clk 0:02:48]} 13. Bxf8 {[%clk 0:02:06]}  fxg2 {[%clk 0:02:47]} 14. Bxe7 {[%clk 0:02:06]}  gxf1=Q+ {[%clk 0:02:21]} 15. Nxf1 {[%clk 0:02:07]}  Qxe7 {[%clk 0:02:09]} 16. Qxg4 {[%clk 0:02:07]}  a5 {[%clk 0:02:10]} 17. e4 {[%clk 0:02:03]}  Nd4 {[%clk 0:02:09]} 18. Nd2 {[%clk 0:01:52]}  a4 {[%clk 0:02:07]} 19. Qd1 {[%clk 0:01:46]}  axb3 {[%clk 0:02:04]} 20. axb3 {[%clk 0:01:47]}  Rxa1 {[%clk 0:02:04]} 21. Qxa1 {[%clk 0:01:45]}  Qf6 {[%clk 0:02:04]} 22. Qa8+ {[%clk 0:01:40]}  Kg7 {[%clk 0:02:03]} 23. Qxb7 {[%clk 0:01:39]}  Qg5 {[%clk 0:02:01]} 24. f4 {[%clk 0:01:00]}  Qh5 {[%clk 0:01:58]} 25. Qxc7 {[%clk 0:00:48]}  Qd1+ {[%clk 0:01:55]} 26. Nf1 {[%clk 0:00:47]}  Qe2 {[%clk 0:01:55]} 27. Nd2 {[%clk 0:00:29]}  Qxd2 {[%clk 0:01:51]} 28. Qxd6 {[%clk 0:00:29]}  Nf3+ {[%clk 0:01:50]} 29. Kf1 {[%clk 0:00:29]}  Nxh2+ {[%clk 0:01:50]} 30. Kg1 {[%clk 0:00:29]}  Nf3+ {[%clk 0:01:48]} 31. Kf1 {[%clk 0:00:30]}  Qe1+ {[%clk 0:01:48]} 32. Kg2 {[%clk 0:00:29]}  Qe2+ {[%clk 0:01:49]} 33. Kh3 {[%clk 0:00:27]}  Ng1+ {[%clk 0:01:49]} 34. Kh4 {[%clk 0:00:26]}  Qh5# {[%clk 0:01:49]} 0-1

[Event "January 9 Early 2024"]
[Site "https://www.chess.com"]
[Date "2024.01.11"]
[Round "11"]
[White "Espinoza Villanueva, Rodrigo"]
[Black "Buscar, Michael"]
[Result "1-0"]
[Board "23"]
[TimeControl "180+1"]
[WhiteFideId "5140188"]
[BlackFideId "2603616"]
[WhiteElo "2585"]
[BlackElo "2416"]
[WhiteTeam "MEX"]
[BlackTeam "CAN"]
[WhiteClock "0:01:17"]
[BlackClock "0:00:21"]

1. e4 {[%clk 0:03:00]}  c5 {[%clk 0:02:53]} 2. Nf3 {[%clk 0:03:00]}  Nc6 {[%clk 0:02:53]} 3. d4 {[%clk 0:02:58]}  cxd4 {[%clk 0:02:54]} 4. Nxd4 {[%clk 0:02:58]}  Nf6 {[%clk 0:02:55]} 5. Nc3 {[%clk 0:02:58]}  e5 {[%clk 0:02:55]} 6. Ndb5 {[%clk 0:02:58]}  h6 {[%clk 0:02:55]} 7. Bc4 {[%clk 0:02:40]}  d6 {[%clk 0:02:54]} 8. O-O {[%clk 0:02:37]}  a6 {[%clk 0:02:54]} 9. Na3 {[%clk 0:02:37]}  b5 {[%clk 0:02:44]} 10. Bd5 {[%clk 0:02:14]}  Nxd5 {[%clk 0:02:41]} 11. Nxd5 {[%clk 0:02:15]}  Be6 {[%clk 0:02:29]} 12. c4 {[%clk 0:02:07]}  Ne7 {[%clk 0:01:39]} 13. Be3 {[%clk 0:01:55]}  Nxd5 {[%clk 0:01:37]} 14. exd5 {[%clk 0:01:56]}  Bd7 {[%clk 0:01:36]} 15. f4 {[%clk 0:01:55]}  exf4 {[%clk 0:01:25]} 16. Bd4 {[%clk 0:01:49]}  Qg5 {[%clk 0:01:21]} 17. Qe2+ {[%clk 0:01:44]}  Be7 {[%clk 0:01:17]} 18. Rae1 {[%clk 0:01:44]}  Kf8 {[%clk 0:01:13]} 19. Rxf4 {[%clk 0:01:31]}  Qxf4 {[%clk 0:00:44]} 20. Qxe7+ {[%clk 0:01:29]}  Kg8 {[%clk 0:00:44]} 21. Re4 {[%clk 0:01:20]}  Re8 {[%clk 0:00:22]} 22. Qxe8+ {[%clk 0:01:17]}  Bxe8 {[%clk 0:00:21]} 23. Rxf4 {[%clk 0:01:17]} 1-0